Cogmind - Beta 14 @@@ ROGUE MODE // 2024.12.08 @ 00:01:23 Player: Duduxx Result: Self-destructed Performance ------------- Evolutions (3) 1500 Regions Visited (8) 1600 Robots Destroyed (81) 405 Value Destroyed (2686) 2686 Prototype IDs (11) 220 Alien Tech Used (0) 0 Bonus (34) 34 TOTAL SCORE: 6445 Bonus ------- High Alert Combat Kills 34 Cogmind --------- Core Integrity 43/700 Matter 296/300 Energy 100/100 System Corruption 1% Temperature Cool (0) Movement Core (50) Location -7/Storage Parts ------- > --- POWER (2) -------- (None) > --- PROPULSION (4) --- (None) > --- UTILITY (5) ------ Advanced Targeting Computer Core Shielding Hacking Suite > --- WEAPON (2) ------- (None) > --- INVENTORY (5) ---- Improved Deuterium Engine Light Treads Cooled Airjet Improved Heat Sink Peak State ------------ > --- POWER ------------ Micro Nuclear Core Micro Nuclear Core > --- PROPULSION ------- Improved Titanium Leg Improved Titanium Leg Improved Titanium Leg Improved Titanium Leg > --- UTILITY ---------- Improved Heat Sink Large Storage Unit Improved Targeting Computer Advanced ECM Suite Improved Light Armor Plating > --- WEAPON ----------- Gatling Laser Flak Gun > --- INVENTORY -------- Light Nuclear Core Armored Treads Medium Treads Medium Treads Medium Treads Airjet Gravmag System Small Storage Unit Improved Signal Interpreter Hacking Suite Recalibrator Flak Gun Improved Grenade Launcher Datajack Mining Claw [Rating: 49] Favorites ----------- Power Micro Nuclear Core Engine Ion Engine Power Core Micro Nuclear Core Propulsion Improved Titanium Leg Treads Medium Treads Leg Improved Titanium Leg Hover Unit Cooled Airjet Flight Unit Xenon Bombardment Thruster Utility Cooling System Device Cooling System Storage Large Storage Unit Processor Improved Targeting Computer Hackware Hacking Suite Protection Improved Light Armor Plating Weapon Beam Rifle Energy Gun Beam Rifle Energy Cannon Heavy Ion Cannon Ballistic Gun Flak Gun Launcher Grenade Launcher Slashing Weapon Mining Claw Build | -11 -10 -10 -9 -8 -7 -7 -7 -7 ------- Run | Yrd Mat Min Mat Mat Fac Was Fac Sto Slots Evolved 6 | . . . 2 2 2 . . . Power 1 | . . . . . 1 . . . Propulsion 2 | . . . 1 1 . . . . Utility 3 | . . . 1 1 1 . . . Weapon . | . . . . . . . . . Parts Attached 120 | 6 3 3 8 21 36 1 20 22 Power 15 | 1 . . . 2 8 . 3 1 Engine 5 | 1 . . . 1 . . 2 1 Core 10 | . . . . 1 8 . 1 . Reactor . | . . . . . . . . . Propulsion 40 | 2 . . 2 5 12 . 10 9 Treads 10 | 2 . . . 5 . . . 3 Leg 17 | . . . . . 8 . 3 6 Wheel . | . . . . . . . . . Hover 6 | . . . . . . . 6 . Flight 7 | . . . 2 . 4 . 1 . Utility 37 | 1 2 . 4 9 10 1 4 6 Device 16 | . 1 . 2 7 3 1 2 . Storage 4 | 1 1 . . 1 1 . . . Processor 4 | . . . . . 2 . 2 . Hackware 4 | . . . 1 . 2 . . 1 Protection 9 | . . . 1 1 2 . . 5 Artifact . | . . . . . . . . . Weapon 28 | 2 1 3 2 5 6 . 3 6 Energy Gun 8 | 1 . 1 1 2 1 . 2 . Energy Cannon 2 | . . . . . 1 . . 1 Ballistic Gun 10 | 1 . 1 . 2 3 . . 3 Ballistic Cannon . | . . . . . . . . . Launcher 6 | . 1 1 1 1 1 . . 1 Special Weapon . | . . . . . . . . . Impact Weapon . | . . . . . . . . . Slashing Weapon 2 | . . . . . . . 1 1 Piercing Weapon . | . . . . . . . . . Special Melee Weapon . | . . . . . . . . . Unidentified Prototypes 4 | . . . 1 . 1 . 2 . Parts Lost 44 | . . . 5 4 6 . 5 24 Power 5 | . . . . . 1 . 1 3 Propulsion 15 | . . . 2 1 1 . 2 9 Utility 14 | . . . 2 2 2 . 1 7 Weapon 10 | . . . 1 1 2 . 1 5 Highest Loss Streak 12 | . . . 3 3 2 . 4 12 To Critical Strikes 2 | . . . 1 . . . . 1 Average Slot Usage (%) 91 | . 98 99 79 94 96 76 93 83 Engine 6 | . 14 14 11 3 3 . 4 4 Core 5 | . . . . 5 10 15 10 1 Treads 12 | . 28 28 10 32 2 . . 3 Leg 10 | . . . . . 25 . 8 15 Hover 1 | . . . . . . . 7 6 Flight 2 | . . . 5 . 1 23 12 . Device 12 | . 12 14 12 22 8 7 12 6 Storage 8 | . 14 14 11 9 7 7 7 5 Processor 5 | . . . . . 7 15 15 10 Hackware 2 | . . . 2 . 5 7 . 4 Protection 4 | . . . 5 2 6 . . 7 Energy Gun 6 | . 3 . 10 11 6 . 6 1 Ballistic Gun 5 | . 14 25 . 3 5 . . 4 Launcher 2 | . 10 1 11 2 . . . . Slashing Weapon 1 | . . . . . . . 3 5 Peak Build Rating 49 | 6 7 7 15 36 49 38 47 49 Average Rating 29 | 4 6 6 10 29 43 34 43 33 On Entrance 19 | . 6 7 7 10 31 38 34 46 Naked Turns . | . . . . . . . . . Heaviest Build 48 | 13 21 21 25 40 48 17 30 36 Greatest Support 112 | 40 40 40 40 112 80 17 36 63 Greatest Overweight (x) 8 | . . . 8 8 2 . 2 2 Average Overweight (x) . | . . . 1 . . . . . Largest Inventory Capacity 15 | 8 10 10 10 15 15 8 8 8 Average Capacity 11 | 7 9 10 10 12 14 8 8 7 Most Carried 15 | 3 4 9 10 10 15 8 8 8 Average Carried 8 | . 2 6 8 7 13 7 6 4 Final Capacity 15 | 8 10 10 10 15 8 8 8 5 Final Carried 10 | 1 4 9 7 10 7 8 5 4 Class Distribution -------------------- 97% | Mutant Dominant Class ---------------- Mutant | -10/Materials Mutant | -10/Mines Mutant | -9/Materials Mutant | -8/Materials Mutant | -7/Factory Sprinter | -7/Waste Mutant | -7/Factory Mutant | -7/Storage Resources | -11 -10 -10 -9 -8 -7 -7 -7 -7 ----------- Run | Yrd Mat Min Mat Mat Fac Was Fac Sto Matter Collected 1917 | 199 . 98 191 354 482 161 133 299 Remotely . | . . . . . . . . . Salvage Created 2455 | . 127 50 378 509 586 . 167 638 Parts 146 | . 7 9 38 30 28 . 8 26 Haulers Intercepted . | . . . . . . . . . Recyclers Shooed 1 | . . . 1 . . . . . Parts Field Recycled . | . . . . . . . . . Retrieved Matter . | . . . . . . . . . Parts Self-Destructed . | . . . . . . . . . Prevented . | . . . . . . . . . Kills | -11 -10 -10 -9 -8 -7 -7 -7 -7 ------- Run | Yrd Mat Min Mat Mat Fac Was Fac Sto Combat Hostiles Destroyed 66 | . 2 6 12 13 17 . 3 13 Melee 4 | . . . . . . . . 4 Guns 39 | . . 4 5 8 14 . 3 5 Cannons 1 | . . . . . . . . 1 AOE 21 | . 2 2 7 4 3 . . 3 Classes Destroyed 12 | . 3 1 3 3 1 . . 1 Worker 3 | . . . . 2 1 . . . Builder 1 | . . . . . . . . 1 Recycler 3 | . 1 . 1 . . . . 1 Mechanic 1 | . . . 1 . . . . . Operator 3 | . 1 . 1 . 1 . . . Watcher 4 | . . . 2 2 . . . . Swarmer 23 | . . 6 7 3 6 . . 1 Grunt 21 | . 2 . 3 6 6 . . 4 Duelist 1 | . . . . 1 . . . . Sentry 16 | . . . 2 2 2 . 3 7 Hunter 3 | . . . . 1 1 . . 1 Programmer 2 | . . . . . 2 . . . Best Kill Streak 8 | . 2 3 8 5 3 . 1 4 Combat Bots Only 7 | . 2 3 7 4 3 . 1 4 Max Kills in Single Turn 4 | . 2 2 4 2 2 . 1 2 Gunslinging . | . . . . . . . . . Exploded 3 | . 1 2 3 1 2 . . 2 Melee 1 | . . . . . . . . 1 Uniques/NPCs Destroyed . | . . . . . . . . . Combat | -11 -10 -10 -9 -8 -7 -7 -7 -7 -------- Run | Yrd Mat Min Mat Mat Fac Was Fac Sto Hostile Shots Fired 950 | . 7 47 53 96 155 . 114 478 Missed 325 | . 5 13 16 36 55 . 52 148 Damage Taken 6470 | . 35 274 502 920 1271 . 464 3004 Core 1003 | . 17 49 127 153 73 . 155 429 Absorbed by Shields . | . . . . . . . . . Redirected to Shielding 48 | . . . . . . . . 48 Core Remaining (%) 78 | 100 . 73 68 72 . . . . Volleys Fired 179 | . 7 14 24 41 46 . 19 28 Largest 2 | . 2 2 2 2 2 . 1 2 Hottest 145 | . 50 60 86 121 108 . 80 145 Shots Fired 264 | . 11 22 35 82 60 . 19 35 Gun 229 | . 7 20 24 77 57 . 19 25 Cannon 7 | . . . . . 1 . . 6 Launcher 28 | . 4 2 11 5 2 . . 4 Special . | . . . . . . . . . Kinetic 94 | . 7 14 . 30 24 . . 19 Thermal 141 | . . 6 24 47 33 . 19 12 Explosive 28 | . 4 2 11 5 2 . . 4 Electromagnetic 1 | . . . . . 1 . . . Robot Hit Streak 28 | . 3 2 8 10 12 . 9 28 Robot Miss Streak 6 | . 3 4 4 6 4 . 2 3 Penetration Max . | . . . . . . . . . Secondary Targets 5 | . . 2 . 2 1 . . . Max Gunslinging Chain 1 | . . 1 . 1 1 . . . Shots Hit Robots 233 | . 6 9 23 66 55 . 19 55 Core Hits 231 | . 10 7 28 52 63 . 18 53 Critical Kills . | . . . . . . . . . Critical Parts Destroyed . | . . . . . . . . . Critical Strikes 9 | . . . 3 6 . . . . Burn 9 | . . . 3 6 . . . . Melee Attacks 34 | . . . . . . . . 34 Impact . | . . . . . . . . . Slashing 34 | . . . . . . . . 34 Piercing . | . . . . . . . . . Sneak Attacks 4 | . . . . . . . . 4 Combat Hostiles . | . . . . . . . . . Follow-up Attacks . | . . . . . . . . . Damage Inflicted 6134 | . 198 288 966 1184 1469 . 434 1595 Guns 3583 | . 37 106 248 962 1181 . 434 615 Cannons 79 | . . . . . . . . 79 Explosions 1860 | . 161 170 718 215 276 . . 320 Melee 566 | . . . . . . . . 566 Ramming 46 | . . 12 . 7 12 . . 15 Kinetic 1484 | . 37 83 . 435 493 . . 436 Thermal 2190 | . . 23 260 527 688 . 434 258 Explosive 1848 | . 161 170 706 215 276 . . 320 Electromagnetic . | . . . . . . . . . Impact . | . . . . . . . . . Slashing 566 | . . . . . . . . 566 Piercing . | . . . . . . . . . Highest Corruption 1 | . . . . . 1 1 1 1 Average Corruption 1 | . . . . . 1 1 1 1 Corruption Purged . | . . . . . . . . . Corruption Blocked . | . . . . . . . . . Effects 17 | . . . . . 8 . 5 4 Message Errors 2 | . . . . . . . 1 1 Matter Fused 7 | . . . . . 4 . 2 1 Heat Flow Errors 1 | . . . . . 1 . . . Energy Discharges 3 | . . . . . 1 . 1 1 Parts Rejected 1 | . . . . . 1 . . . Data Loss (minor) 1 | . . . . . 1 . . . Misfires 1 | . . . . . . . . 1 Alerts 1 | . . . . . . . 1 . Overload Shots . | . . . . . . . . . Overflow Damage 61 | . . 8 9 . . . . 44 Projectiles 2 | . . . . . . . . 2 Explosions 17 | . . 8 9 . . . . . Melee 42 | . . . . . . . . 42 Knockbacks . | . . . . . . . . . Impact . | . . . . . . . . . Kinetic . | . . . . . . . . . Secondary . | . . . . . . . . . Self-Inflicted Damage 59 | . . . 30 29 . . . . Shots 3 | . . . 1 2 . . . . Rammed 3 | . . 2 . . . . . 1 Targets Rammed 17 | . . 2 . 1 4 . . 10 Kicked 13 | . . . . . 4 . . 9 Crushed 1 | . . . . 1 . . . . Highest Temperature 160 | . . . 101 21 130 . 160 51 Average Temperature 36 | . . . 34 7 37 . 56 12 Received Heat Transfer 1740 | . 18 . 171 342 246 . 150 813 Siege Activations . | . . . . . . . . . Robots Corrupted . | . . . . . . . . . Combat Hostiles . | . . . . . . . . . Parts Fried . | . . . . . . . . . Impact Corruptions . | . . . . . . . . . Robots Melted 1 | . . . . 1 . . . . Combat Hostiles 1 | . . . . 1 . . . . Parts Melted 11 | . . . 1 6 . . 4 . Heat Transferred 5762 | . . 50 901 1739 1561 . 1000 511 Parts Sabotaged . | . . . . . . . . . Parts Stolen . | . . . . . . . . . Parts Stripped . | . . . . . . . . . Power Chain Reactions . | . . . . . . . . . Alert | -11 -10 -10 -9 -8 -7 -7 -7 -7 ------- Run | Yrd Mat Min Mat Mat Fac Was Fac Sto Peak Influence 532 | . 109 221 532 387 229 65 175 339 Initial 166 | . . 42 85 139 166 65 45 79 Average 195 | . 70 126 315 282 151 65 113 248 Maximum Alert Level 2 | . . 1 2 1 1 . . 1 Low Security (%) 62 | 100 100 95 19 21 90 100 100 24 Level 1 34 | . . 4 54 78 9 . . 75 Level 2 3 | . . . 25 . . . . . Level 3 . | . . . . . . . . . Level 4 . | . . . . . . . . . Level 5 . | . . . . . . . . . High Security . | . . . . . . . . . Max Security . | . . . . . . . . . Squads Dispatched 14 | . . . . 3 4 . 3 4 Investigation 2 | . . . . . 1 . . 1 Extermination 2 | . . . . . 2 . . . Reinforcement 4 | . . . . . 1 . . 3 Assault . | . . . . . . . . . Garrison 6 | . . . . 3 . . 3 . Intercept . | . . . . . . . . . Searches Triggered . | . . . . . . . . . Construction Impeded . | . . . . . . . . . Haulers Reinforced 2 | . . . . . . . . 2 Active Scanning Responses . | . . . . . . . . . Cargo Convoy Interrupts . | . . . . . . . . . Stealth | -11 -10 -10 -9 -8 -7 -7 -7 -7 --------- Run | Yrd Mat Min Mat Mat Fac Was Fac Sto Distress Signals 4 | . . . 2 1 . . . 1 Communications Jammed . | . . . . . . . . . Distress Signals . | . . . . . . . . . Times Spotted 109 | . 6 6 20 19 23 . 6 29 Peak Tracking Total 10 | . 2 3 8 3 4 . 2 10 Tactical Retreats 8 | . . . . . 2 . 1 5 Traps | -11 -10 -10 -9 -8 -7 -7 -7 -7 ------- Run | Yrd Mat Min Mat Mat Fac Was Fac Sto Traps Triggered 1 | . . . . . 1 . . . Indirectly . | . . . . . . . . . Trap Hack Attempts . | . . . . . . . . . Triggered . | . . . . . . . . . Disarmed . | . . . . . . . . . Reprogrammed . | . . . . . . . . . Reused . | . . . . . . . . . Traps Extracted . | . . . . . . . . . Installed . | . . . . . . . . . Triggered . | . . . . . . . . . Machines | -11 -10 -10 -9 -8 -7 -7 -7 -7 ---------- Run | Yrd Mat Min Mat Mat Fac Was Fac Sto Machines Disabled 6 | . . 1 3 . . . . 2 Max in Single Turn 2 | . . 1 2 . . . . 1 Machines Repaired . | . . . . . . . . . Machines Dismantled . | . . . . . . . . . Machines Sabotaged . | . . . . . . . . . Overloaded Fab Kills . | . . . . . . . . . Hacking | -11 -10 -10 -9 -8 -7 -7 -7 -7 --------- Run | Yrd Mat Min Mat Mat Fac Was Fac Sto Machines Accessed 11 | . 1 . . 2 4 . 1 3 Terminals 6 | . 1 . . 1 2 . . 2 Fabricators . | . . . . . . . . . Repair Stations 1 | . . . . . 1 . . . Recycling Units 1 | . . . . . . . . 1 Scanalyzers 2 | . . . . 1 1 . . . Garrison Access 1 | . . . . . . . 1 . Total Hacks 29 | . 2 . . 5 10 . 1 11 Successful 13 | . 1 . . 4 4 . . 4 Failed 16 | . 1 . . 1 6 . 1 7 Catastrophic 1 | . . . . . . . . 1 Database Lockouts . | . . . . . . . . . Manual 6 | . . . . 1 3 . . 2 Terminals 19 | . 2 . . 3 6 . . 8 Fabricators . | . . . . . . . . . Repair Stations 2 | . . . . . 2 . . . Recycling Units 3 | . . . . . . . . 3 Scanalyzers 4 | . . . . 2 2 . . . Garrison Access 1 | . . . . . . . 1 . Terminal Hacks 10 | . 1 . . 2 4 . . 3 Record 5 | . . . . 1 3 . . 1 Prototype ID Bank 3 | . 1 . . 1 . . . 1 Open DSF 1 | . . . . . 1 . . . Alert Level 1 | . . . . . . . . 1 Fabricator Hacks . | . . . . . . . . . Repair Station Hacks . | . . . . . . . . . Recycling Unit Hacks 1 | . . . . . . . . 1 Report Inventory 1 | . . . . . . . . 1 Scanalyzer 2 | . . . . 2 . . . . Insert Component 1 | . . . . 1 . . . . Analyze 1 | . . . . 1 . . . . Garrison Access Hacks . | . . . . . . . . . Unauthorized Hacks . | . . . . . . . . . Terminals . | . . . . . . . . . Fabricators . | . . . . . . . . . Repair Stations . | . . . . . . . . . Recycling Units . | . . . . . . . . . Scanalyzers . | . . . . . . . . . Garrison Access . | . . . . . . . . . Data Cores Recovered 3 | . 1 . 1 . 1 . . . Used 1 | . . . . . 1 . . . Hacking Detections 10 | . 1 . . 1 4 . 1 3 Full Trace Events 3 | . . . . 1 1 . . 1 Feedback Events . | . . . . . . . . . Feedback Blocked . | . . . . . . . . . Robot Schematics Acquired . | . . . . . . . . . Robots Built . | . . . . . . . . . Authchips . | . . . . . . . . . Time . | . . . . . . . . . Total Robot Build Rating . | . . . . . . . . . Part Schematics Acquired 1 | . . . . 1 . . . . Parts Built . | . . . . . . . . . Authchips . | . . . . . . . . . Time . | . . . . . . . . . Total Part Build Rating . | . . . . . . . . . Parts Repaired . | . . . . . . . . . Time . | . . . . . . . . . Parts Recycled . | . . . . . . . . . Recycled Matter . | . . . . . . . . . Retrieved Matter . | . . . . . . . . . Retrieved Components . | . . . . . . . . . Parts Scanalyzed 1 | . . . . 1 . . . . Part Schematics Acquired 1 | . . . . 1 . . . . Parts Damaged 1 | . . . . 1 . . . . Bothacking | -11 -10 -10 -9 -8 -7 -7 -7 -7 ------------ Run | Yrd Mat Min Mat Mat Fac Was Fac Sto Used RIF Installer . | . . . . . . . . . Robots Hacked . | . . . . . . . . . Non-combat . | . . . . . . . . . Combat . | . . . . . . . . . Robot Hacks Applied . | . . . . . . . . . Relay Couplers Released . | . . . . . . . . . Fabnet Peak Effective % . | . . . . . . . . . Robots Rewired . | . . . . . . . . . Allies Hacked . | . . . . . . . . . Hacks Repelled . | . . . . . . . . . Allies | -11 -10 -10 -9 -8 -7 -7 -7 -7 -------- Run | Yrd Mat Min Mat Mat Fac Was Fac Sto Total Allies . | . . . . . . . . . Largest Group . | . . . . . . . . . Highest-Rated Group . | . . . . . . . . . Highest-Rated Ally . | . . . . . . . . . Total Orders . | . . . . . . . . . Ally Attacks . | . . . . . . . . . Total Damage . | . . . . . . . . . Kills . | . . . . . . . . . Allies Corrupted . | . . . . . . . . . Allies Melted . | . . . . . . . . . Intel | -11 -10 -10 -9 -8 -7 -7 -7 -7 ------- Run | Yrd Mat Min Mat Mat Fac Was Fac Sto Robot Analysis Total . | . . . . . . . . . Derelict Logs Recovered . | . . . . . . . . . Drone Launches . | . . . . . . . . . Drone Recoveries . | . . . . . . . . . Exploration | -11 -10 -10 -9 -8 -7 -7 -7 -7 ------------- Run | Yrd Mat Min Mat Mat Fac Was Fac Sto Turns Passed 4260 | 76 202 322 567 770 1317 86 399 521 Spaces Moved 2608 | 43 112 171 195 327 875 263 387 235 Core 11 | 3 . . 7 1 . . . . Treads 846 | 40 112 171 143 316 57 . . 7 Legs 1104 | . . . . . 744 . 183 177 Wheels . | . . . . . . . . . Hover 201 | . . . . . . . 150 51 Flight 446 | . . . 45 10 74 263 54 . Fastest Speed 28 | 50 160 160 160 160 29 32 28 115 Average Speed 129 | 152 160 160 255 172 125 32 83 124 Slowest Speed 520 | 160 160 160 520 520 270 32 190 260 Overloaded Moves . | . . . . . . . . . Propulsion Burnouts . | . . . . . . . . . Robots Hopped . | . . . . . . . . . Cave-ins Triggered . | . . . . . . . . . Exploration Rate (%) 32 | 5 25 46 23 41 18 89 13 32 Regions Visited 8 Branch Regions 2 Pre-discovered Areas . | . . . . . . . . . Known Exits Taken 1 | . . . . . . . 1 . Unknown Exits Taken 5 | 1 1 1 1 1 . . . . Scrap Searched 1 | . . 1 . . . . . . Spaces Dug . | . . . . . . . . . Terrain Destroyed 181 | . 19 13 86 24 9 . . 30 Melee . | . . . . . . . . . Projectile 1 | . . . . . . . . 1 AOE 180 | . 19 13 86 24 9 . . 29 Terrain Rammed . | . . . . . . . . . Walls Destroyed . | . . . . . . . . . Machines Disabled . | . . . . . . . . . Actions | -11 -10 -10 -9 -8 -7 -7 -7 -7 --------- Run | Yrd Mat Min Mat Mat Fac Was Fac Sto Total 3144 | 52 123 196 234 451 1031 265 440 352 Wait 73 | . . . . 37 23 . . 13 Move 2601 | 42 111 170 194 326 875 262 386 235 Hop . | . . . . . . . . . Pick Up 39 | 3 1 5 4 8 13 . 3 2 Fast Attach 60 | 5 2 1 2 11 14 . 10 15 Attach 30 | 1 . . 5 4 8 1 6 5 Detach 32 | . 1 1 1 7 9 2 5 6 Swap 30 | . 1 2 1 6 14 . 4 2 Drop 49 | 1 . 1 3 10 25 . 7 2 Fire 179 | . 7 14 24 41 46 . 19 28 Melee 34 | . . . . . . . . 34 Ram 1 | . . . . . . . . 1 Kick 13 | . . . . . 4 . . 9 Crush 3 | . . 2 . 1 . . . . Escape Stasis . | . . . . . . . . . Rewire . | . . . . . . . . . Trap . | . . . . . . . . . Miscellaneous . | . . . . . . . . . Route ------- -11/Scrapyard -10/Materials -10/Mines -9/Materials -8/Materials -7/Factory -7/Waste -7/Factory -7/Storage History --------- Turn | Location | Event 9 | -11/Scrapyard | Discovered new exit (range 15) 77 | -11/Scrapyard | Entered Materials 269 | -10/Materials | Discovered new exit (range 7) 279 | -10/Materials | Entered Mines 312 | -10/Mines | Build established: Mutant 318 | -10/Mines | Met a Derelict bent on vengeance 440 | -10/Mines | Found a hidden stash of uninstalled traps 588 | -10/Mines | Discovered new exit (range 8) 601 | -10/Mines | Entered Materials 601 | -9/Materials | Evolved 2 slots: Propulsion x1, Utility x1 902 | -9/Materials | Destroyed 7 combat bots 908 | -9/Materials | Lost 3 parts (2n1u) 1054 | -9/Materials | Discovered new exit (range 14) 1168 | -9/Materials | Entered another Materials area 1168 | -8/Materials | Evolved 2 slots: Propulsion x1, Utility x1 1584 | -8/Materials | Garrison activated, responded to threat 1644 | -8/Materials | Lost 3 parts (2u1w) 1912 | -8/Materials | Discovered new exit (range 15) 1938 | -8/Materials | Entered Factory 1938 | -7/Factory | Evolved 2 slots: Power x1, Utility x1 3229 | -7/Factory | Discovered new exit (range 11) 3255 | -7/Factory | Sucked down chute 3255 | -7/Factory | Entered Waste 3255 | -7/Waste | The area was eerily silent 3311 | -7/Waste | Discovered new exit (range 16) 3341 | -7/Waste | Entered Factory 3421 | -7/Factory | Lost 4 parts (1p1n1u1w) 3696 | -7/Factory | Discovered new exit (range 15) 3739 | -7/Factory | Identified exit to Storage 3740 | -7/Factory | Entered Storage 3818 | -7/Storage | Core integrity fell below 50% 3924 | -7/Storage | Lost 7 parts (1p3n1u2w) 4200 | -7/Storage | Lost 3 parts (1n2u) 4220 | -7/Storage | Core integrity fell below 20% 4261 | -7/Storage | Self-destructed Last Messages --------------- 04234_ Acquired Imp. Deuterium Engine. 04237_ Acquired Imp. Light Armor Plating. 04245_ Imp. Light Armor Plating destroyed. 04246_ Acquired Aluminum Leg. 04247_ Flak Gun destroyed. 04248_ Kicked Y-54 Guardian. 04249_ Kicked Y-54 Guardian out of the way. 04250_ Slug penetrates Wall. 04250_ Kicked Y-54 Guardian out of the way. 04251_ Kicked Y-54 Guardian. 04253_ Carbon-fiber Leg destroyed. 04254_ Kicked Y-54 Guardian. 04256_ Penetrated by Slug. 04256_ Imp. Deuterium Engine destroyed. 04256_ Imp. Light Armor Plating destroyed. 04257_ Kicked Y-54 Guardian. 04259_ Kicked Y-54 Guardian out of the way. 04259_ Critical hit (Burn: +37). 04259_ Aluminum Leg destroyed. 04260_ Slammed into Y-54 Guardian. Map ----- +----------------------------------------------------+ | | | | | | | | | | | | | | | | | ????????????????????##############??? | | ????????????????????# #### | | ????????????????????# !! """ ##"" | | ????????????????????# ![ """ ##"Y | | ????????????????????# ! """ #"" | | ????????????????????# #??# | | ????????#"""????????#######+######?## | | ???????##""T?"##????????# ! ####### | | ???????# ????????# | | ???????# ????????# | | ???????#!! ????????# | | ???????#!= ????????# ####+## | | ???????# " "??????######+#### | | ???????? "R"??????#===[ # | | ????????? ""???????# """" # | | ?????????? ???????#|"! "" # | | ??????????##m#########!] =""" # | | ??????????#Y@ ]! %gsg/!"""] " # % | | ??????????# h##+##### ""= " #!] | | ??????????+ #[[*= ## """" # ! | | ??????????# #!% ## # !! | | ??????????+ # "T" ################# | | ??????????# # #???????????????? | | ??????????# ### ###??????????###### | | ??????????# #?###????????????# | | ??????????# #????????????????# """ | | ??????????# #????????????????# """ | | ??????????# #????????????????# """ | | ??????????+ #????????????????# | | ??????????# #????????????????# | | ??????????# ?????????????????# | | ??????????# ?????????????????# | | ??????????? ?????????????????# | | ???????????????????????????????#####+ | | ????????????????????????????????????? | | ????????????????????????????????????? | | ????????????????????????????????????? | | ????????????????????????????????????? | | ????????????????????????????????????? | | ????????????????????????????????????? | | ????????????????????????????????????? | | ????????????????????????????????????? | +----------------------------------------------------+ Best States ------------- Heat Dissipation 75 Energy Generation 28 Energy Capacity 360 Matter Stores 300 Matter Capacity 300 Sight Range 16 Robot Scan Range 15 Terrain Scan Range 14 Terrain Scan Density 10 ECM Strength 2 Armor Coverage 375 Core Shielding 20 Evasion (%) 64 Targeting Accuracy 8 Core Analysis 6 Recoil Reduction 4 Offensive Hacking 10 Item Schematics ----------------- Airjet | -8/Materials | Scanalyzed Robot Schematics ------------------ None Fabricated ------------ Nothing Alien Tech Used ----------------- None Achievements -------------- None Challenges ------------ None Game ------ Seed AlertSkeletonSpiker Manual? 0 Play Time 00:43:49 Cumulative 74.6 hours Start 2024.12.07 @ 23:19:07 End 2024.12.08 @ 00:01:23 Sessions 1 Manual Loads 0 Difficulty Rogue Special Mode None Game No. 151 Rogue 151 Adventurer 0 Explorer 0 Win Type - Total 0 Types 0/0/0/0/0/0/0/0/0 Lore% 22 Gallery% 40 Achievement% 33 Wizard Run 0 Options --------- Layout 1 ASCII 0 Keyboard 1 Movement Arrows Keybinds 0 Fullscreen 1 Font 24/Smallcaps Map View 50x35 Zoom Use 0% Tactical HUD 1 Map Filters NONE Filters NONE Steam 1 RUN: bf8ed7dc-01be-41a6-9a3b-b71b9eb63398